[Event "EYCC Open-U18 2019"]
[Site "Bratislava"]
[Date "2019.08.04"]
[Round "3.25"]
[White "Stijve, Theo"]
[Black "Santryan, Davit"]
[Result "0-1"]
[ECO "C84"]
[WhiteElo "2336"]
[BlackElo "2167"]
[Annotator "NA"]
[PlyCount "170"]
[EventDate "2019.08.02"]
[EventType "swiss"]
[EventCountry "SVK"]
[SourceTitle "playchess.com"]
[Source "ChessBase"]
[SourceQuality "1"]
[TimeControl "40/5400+30:1800+30"]

1. e4 {[%emt 0:00:03]} e5 {[%emt 0:00:00]} 2. Nf3 {[%emt 0:00:08]} Nc6 {[%emt 0:00:08]} 3. Bb5 {[%emt 0:00:07]} a6 {[%emt 0:00:29]} 4. Ba4 {[%emt 0:00:09]} Nf6 {[%emt 0:00:13]} 5. O-O {[%emt 0:00:09]} Be7 {[%emt 0:00:15]} 6. d3 {[%emt 0:00:21]} b5 {[%emt 0:00:27]} 7. Bb3 {[%emt 0:00:09]} d6 {[%emt 0:00:24]} 8. a3 {[%emt 0:00:22]} O-O {[%emt 0:01:24]} 9. Nc3 {[%emt 0:00:09]} Nb8 {[%emt 0:01:10]} 10. h3 {[%emt 0:06:17]} Bb7 {[%emt 0:03:26]} 11. Re1 {[%emt 0:08:40]} Nbd7 12. Ba2 {[%emt 0:04:39]} c6 {[%emt 0:08:39]} 13. d4 {[%emt 0:13:05]} Qc7 {[%emt 0:03:39]} 14. dxe5 {[%emt 0:11:55]} dxe5 {[%emt 0:02:18]} 15. Nh4 {[%emt 0:00:15]} g6 {[%emt 0:09:26]} 16. Bh6 {[%emt 0:06:12]} Rfe8 {[%emt 0:07:43]} 17. Nf3 {[%emt 0:07:49]} Bf8 {[%emt 0:06:56]} 18. Qd2 {[%emt 0:03:57]} Rad8 {[%emt 0:03:39]} 19. Bxf8 {[%emt 0:03:07]} Nxf8 {[%emt 0:01:35]} 20. Qg5 {[%emt 0:01:04]} Kg7 {[%emt 0:10:00]} 21. Rad1 {[%emt 0:07:16]} h6 {[%emt 0:02:46]} 22. Qe3 {[%emt 0:00:58]} c5 {[%emt 0:09:27]} 23. Nd5 {[%emt 0:06:31]} Bxd5 {[%emt 0:01:37]} 24. Bxd5 {[%emt 0:00:14]} Nxd5 {[%emt 0:07:36]} 25. exd5 {[%emt 0:03:36]} e4 {[%emt 0:04:08]} 26. Nd2 f5 27. f3 {[%emt 0:04:57]} Rxd5 {[%emt 0:02:00]} 28. fxe4 {[%emt 0:00:56]} Rde5 {[%emt 0:00:40]} 29. Qc3 {[%emt 0:05:53]} Kg8 30. Qg3 Qe7 {[%emt 0:02:18]} 31. Re3 {[%emt 0:05:19]} Kh7 {[%emt 0:02:05]} 32. Rde1 {[%emt 0:00:36]} Nd7 {[%emt 0:03:56]} 33. Rf1 {[%emt 0:00:59]} Nf6 {[%emt 0:01:13]} 34. Qh4 {[%emt 0:00:34]} Nd5 {[%emt 0:04:01]} 35. Qxe7+ {[%emt 0:00:20]} R8xe7 {[%emt 0:00:14]} 36. Rd3 {[%emt 0:00:20]} fxe4 {[%emt 0:01:13]} 37. Nxe4 {[%emt 0:00:10]} Rxe4 {[%emt 0:00:12]} 38. Rxd5 {[%emt 0:00:01]} c4 {[%emt 0:00:11]} 39. c3 {[%emt 0:01:38]} Kg7 {[%emt 0:00:23]} 40. Rd6 {[%emt 0:00:00]} R4e6 {[%emt 0:00:00]} 41. Rd2 {[%emt 0:05:08]} h5 {[%emt 0:03:05]} 42. Rf4 {[%emt 0:03:26]} Re2 {[%emt 0:02:46]} 43. Rfd4 {[%emt 0:00:56]} Rxd2 {[%emt 0:01:30]} 44. Rxd2 {[%emt 0:00:02]} Re6 {[%emt 0:02:41]} 45. Kf2 {[%emt 0:00:33]} Kf6 {[%emt 0:01:29]} 46. g3 {[%emt 0:02:13]} Ke5 {[%emt 0:05:12]} 47. h4 Rd6 {[%emt 0:02:48]} 48. Re2+ {[%emt 0:07:47]} Kf5 {[%emt 0:00:11]} 49. Kf3 {[%emt 0:00:49]} Rd3+ {[%emt 0:00:13]} 50. Kf2 {[%emt 0:00:14]} Kg4 {[%emt 0:09:33]} 51. Re6 Rf3+ 52. Ke1 {[%emt 0:06:42]} Rxg3 {[%emt 0:00:56]} 53. Rxg6+ {[%emt 0:00:17]} Kxh4 {[%emt 0:00:05]} 54. Rxa6 {[%emt 0:01:59]} Rg2 {[%emt 0:00:24]} 55. a4 {[%emt 0:01:01]} Rxb2 {[%emt 0:03:46]} 56. axb5 {[%emt 0:05:29]} Rxb5 {[%emt 0:00:57]} 57. Re6 {[%emt 0:00:53]} Kg3 {[%emt 0:02:43]} 58. Re3+ {[%emt 0:01:07]} Kf4 {[%emt 0:01:15]} 59. Rh3 {[%emt 0:00:06]} Kg4 {[%emt 0:00:45]} 60. Re3 {[%emt 0:00:13]} Rf5 {[%emt 0:00:19]} 61. Re8 {[%emt 0:00:43]} Kf3 {[%emt 0:01:05]} 62. Kf1 {[%emt 0:00:30]} h4 {[%emt 0:00:13]} 63. Kg1 {[%emt 0:00:30]} Rf4 {[%emt 0:00:49]} 64. Rd8 {[%emt 0:01:48]} Kg3 {[%emt 0:01:19]} 65. Rg8+ {[%emt 0:00:30]} Kf3 {[%emt 0:00:47]} 66. Rd8 {[%emt 0:00:28]} Ke2 {[%emt 0:00:36]} 67. Kg2 {[%emt 0:00:31]} Rf3 {[%emt 0:00:22]} 68. Re8+ {[%emt 0:00:36]} Re3 {[%emt 0:00:06]} 69. Rf8 {[%emt 0:00:18]} h3+ {[%emt 0:00:14]} 70. Kh2 {[%emt 0:00:43]} Rxc3 {[%emt 0:00:12]} 71. Rf4 {[%emt 0:00:26]} Kd2 {[%emt 0:00:56]} 72. Rf2+ {[%emt 0:00:26]} Kc1 {[%emt 0:00:15]} 73. Kh1 {[%emt 0:00:08]} Kb1 {[%emt 0:00:22]} 74. Rf4 {[%emt 0:00:23]} Kb2 {[%emt 0:00:15]} 75. Rf2+ {[%emt 0:00:07]} Kb3 {[%emt 0:00:16]} 76. Rf8 {[%emt 0:00:15]} Rd3 {[%emt 0:00:18]} 77. Rb8+ {[%emt 0:00:11]} Kc2 {[%emt 0:00:11]} 78. Kh2 {[%emt 0:00:17]} c3 {[%emt 0:00:10]} 79. Rf8 {[%emt 0:00:38]} Kb2 {[%emt 0:00:18]} 80. Rb8+ {[%emt 0:00:10]} Kc1 {[%emt 0:00:09]} 81. Rc8 {[%emt 0:00:20]} c2 {[%emt 0:00:10]} 82. Rf8 {[%emt 0:00:17]} Kb2 {[%emt 0:00:13]} 83. Rb8+ {[%emt 0:00:25]} Rb3 {[%emt 0:00:06]} 84. Ra8 {[%emt 0:00:11]} c1=Q {[%emt 0:00:39]} 85. Ra2+ {[%emt 0:00:07]} Kc3 {[%emt 0:00:09]} 0-1

[Event "EYCC Open-U18 2019"]
[Site "Bratislava"]
[Date "2019.08.04"]
[Round "3.26"]
[White "Bekasovs, Rihards"]
[Black "Kozak, Antoni"]
[Result "0-1"]
[ECO "A89"]
[WhiteElo "2144"]
[BlackElo "2365"]
[Annotator "NA"]
[PlyCount "72"]
[EventDate "2019.08.02"]
[EventType "swiss"]
[EventCountry "SVK"]
[SourceTitle "playchess.com"]
[Source "ChessBase"]
[SourceQuality "1"]
[TimeControl "40/5400+30:1800+30"]

1. Nf3 {[%emt 0:00:00]} d6 {[%emt 0:00:09]} 2. d4 {[%emt 0:00:49]} f5 {[%emt 0:00:07]} 3. g3 {[%emt 0:01:31]} g6 {[%emt 0:00:50]} 4. Bg2 {[%emt 0:02:42]} Nf6 {[%emt 0:00:10]} 5. O-O {[%emt 0:00:13]} Bg7 {[%emt 0:00:05]} 6. c4 {[%emt 0:12:57]} O-O {[%emt 0:02:13]} 7. Nc3 {[%emt 0:00:10]} Nc6 {[%emt 0:00:30]} 8. d5 {[%emt 0:09:06]} Na5 {[%emt 0:01:01]} 9. Qd3 {[%emt 0:00:23]} e5 {[%emt 0:18:49]} 10. dxe6 {[%emt 0:03:29]} Bxe6 {[%emt 0:00:10]} 11. b3 {[%emt 0:06:54]} Nc6 {[%emt 0:10:01]} 12. Bb2 {[%emt 0:05:54]} Ng4 {[%emt 0:04:59]} 13. e3 {[%emt 0:03:00]} g5 {[%emt 0:10:19]} 14. Nd4 {[%emt 0:12:15]} Bd7 {[%emt 0:01:57]} 15. Nxc6 {[%emt 0:09:52]} Bxc6 {[%emt 0:02:37]} 16. Qe2 {[%emt 0:04:33]} Bxg2 {[%emt 0:03:04]} 17. Kxg2 {[%emt 0:00:01]} Qd7 {[%emt 0:00:25]} 18. h3 {[%emt 0:01:12]} Ne5 {[%emt 0:01:36]} 19. f4 {[%emt 0:00:52]} gxf4 {[%emt 0:00:11]} 20. exf4 {[%emt 0:00:15]} Nc6 {[%emt 0:02:25]} 21. Nd5 {[%emt 0:01:33]} Rae8 {[%emt 0:00:57]} 22. Qf2 {[%emt 0:00:33]} Nd8 {[%emt 0:04:32]} 23. Rae1 {[%emt 0:02:17]} Ne6 {[%emt 0:01:15]} 24. Bxg7 {[%emt 0:06:19]} Qxg7 {[%emt 0:00:17]} 25. Qf3 {[%emt 0:04:12]} c6 {[%emt 0:00:56]} 26. Nc3 {[%emt 0:02:59]} Nc5 {[%emt 0:02:56]} 27. Rxe8 {[%emt 0:00:39]} Rxe8 {[%emt 0:00:06]} 28. Rd1 {[%emt 0:00:14]} Re6 {[%emt 0:03:47]} 29. b4 {[%emt 0:02:04]} Ne4 {[%emt 0:01:17]} 30. Nxe4 {[%emt 0:01:46]} Rxe4 {[%emt 0:00:15]} 31. Qd3 {[%emt 0:00:58]} Qb2+ {[%emt 0:01:13]} 32. Rd2 {[%emt 0:04:04]} Qxb4 {[%emt 0:00:09]} 33. Rc2 {[%emt 0:01:05]} Qc5 {[%emt 0:03:17]} 34. Qc3 {[%emt 0:00:58]} Qd4 {[%emt 0:05:53]} 35. Qb3 {[%emt 0:00:49]} Re3 {[%emt 0:00:36]} 36. Qb2 {[%emt 0:00:44]} Qd3 {[%emt 0:00:27]} 0-1

[Event "EYCC Open-U18 2019"]
[Site "Bratislava"]
[Date "2019.08.04"]
[Round "3.27"]
[White "Pirard, Natan"]
[Black "Guerra Rivera, Salvador"]
[Result "0-1"]
[ECO "B29"]
[WhiteElo "2153"]
[BlackElo "2355"]
[Annotator "NA"]
[PlyCount "136"]
[EventDate "2019.08.02"]
[EventType "swiss"]
[EventCountry "SVK"]
[SourceTitle "playchess.com"]
[Source "ChessBase"]
[SourceQuality "1"]
[TimeControl "40/5400+30:1800+30"]

1. e4 {[%emt 0:00:00]} c5 {[%emt 0:00:00]} 2. Nf3 {[%emt 0:00:03]} Nf6 {[%emt 0:00:11]} 3. e5 {[%emt 0:00:29]} Nd5 {[%emt 0:00:08]} 4. Nc3 {[%emt 0:01:02]} Nxc3 {[%emt 0:00:24]} 5. dxc3 {[%emt 0:00:15]} e6 {[%emt 0:00:19]} 6. Bf4 {[%emt 0:02:35]} Qb6 {[%emt 0:00:33]} 7. b3 {[%emt 0:03:28]} Nc6 {[%emt 0:00:18]} 8. Bd3 {[%emt 0:00:51]} Qc7 {[%emt 0:01:31]} 9. Bg3 {[%emt 0:05:04]} h6 {[%emt 0:05:45]} 10. O-O {[%emt 0:12:54]} b6 {[%emt 0:07:50]} 11. Qe2 {[%emt 0:03:00]} Bb7 {[%emt 0:01:07]} 12. Rad1 {[%emt 0:21:01]} Ne7 {[%emt 0:11:04]} 13. Nd2 {[%emt 0:07:38]} O-O-O {[%emt 0:09:36]} 14. a4 {[%emt 0:08:34]} g5 {[%emt 0:07:33]} 15. Be4 {[%emt 0:08:02]} Nf5 {[%emt 0:14:23]} 16. Nc4 {[%emt 0:03:04]} Bxe4 {[%emt 0:06:03]} 17. Qxe4 {[%emt 0:00:15]} Qc6 {[%emt 0:00:10]} 18. f3 {[%emt 0:07:05]} Be7 {[%emt 0:01:55]} 19. Bf2 {[%emt 0:02:21]} h5 {[%emt 0:02:35]} 20. a5 {[%emt 0:02:32]} b5 {[%emt 0:02:23]} 21. Nd2 {[%emt 0:03:02]} d5 {[%emt 0:02:46]} 22. exd6 {[%emt 0:00:08]} Rxd6 {[%emt 0:00:07]} 23. c4 {[%emt 0:01:31]} b4 {[%emt 0:02:45]} 24. Qxc6+ {[%emt 0:01:56]} Rxc6 {[%emt 0:00:01]} 25. Ne4 {[%emt 0:00:16]} Rg8 {[%emt 0:06:12]} 26. c3 {[%emt 0:02:03]} bxc3 {[%emt 0:02:27]} 27. Nxc3 {[%emt 0:00:03]} Ra6 {[%emt 0:02:43]} 28. Nb5 {[%emt 0:01:03]} Rd8 {[%emt 0:06:33]} 29. b4 {[%emt 0:00:59]} cxb4 {[%emt 0:00:39]} 30. Nxa7+ {[%emt 0:00:39]} Kb7 {[%emt 0:00:26]} 31. Bb6 {[%emt 0:00:54]} Rxb6 {[%emt 0:03:31]} 32. axb6 {[%emt 0:00:13]} Ne3 {[%emt 0:00:27]} 33. Rxd8 {[%emt 0:00:09]} Bxd8 {[%emt 0:00:07]} 34. Rb1 {[%emt 0:01:33]} Bxb6 {[%emt 0:00:29]} 35. Nb5 {[%emt 0:00:23]} Nxc4+ {[%emt 0:00:28]} 36. Kh1 {[%emt 0:00:21]} Bc5 {[%emt 0:00:59]} 37. Nc3 {[%emt 0:01:00]} Kc6 {[%emt 0:00:28]} 38. Ne4 {[%emt 0:00:04]} Be7 {[%emt 0:00:18]} 39. Kg1 {[%emt 0:00:49]} g4 {[%emt 0:01:54]} 40. Kf2 {[%emt 0:00:00]} f5 {[%emt 0:00:00]} 41. Ng3 {[%emt 0:02:34]} Na3 {[%emt 0:10:15]} 42. Rb2 {[%emt 0:07:12]} h4 {[%emt 0:03:30]} 43. Nf1 {[%emt 0:01:31]} Nc4 {[%emt 0:04:10]} 44. Rb1 {[%emt 0:00:59]} Kb5 {[%emt 0:00:15]} 45. fxg4 {[%emt 0:01:01]} fxg4 {[%emt 0:00:06]} 46. Ke2 {[%emt 0:01:26]} Bg5 {[%emt 0:00:09]} 47. Kd3 {[%emt 0:01:11]} e5 {[%emt 0:02:36]} 48. Ke4 {[%emt 0:07:55]} Bf4 {[%emt 0:01:55]} 49. Rd1 {[%emt 0:03:35]} b3 {[%emt 0:01:10]} 50. g3 {[%emt 0:00:35]} hxg3 {[%emt 0:00:06]} 51. hxg3 {[%emt 0:00:03]} Bh6 {[%emt 0:00:34]} 52. Kf5 {[%emt 0:06:33]} b2 {[%emt 0:00:15]} 53. Rb1 {[%emt 0:00:22]} Bc1 {[%emt 0:00:53]} 54. Kxg4 {[%emt 0:01:47]} Kc5 {[%emt 0:00:18]} 55. Kf5 {[%emt 0:01:39]} Kd4 {[%emt 0:00:15]} 56. g4 {[%emt 0:00:39]} Na3 {[%emt 0:05:19]} 57. Rxb2 {[%emt 0:00:56]} Bxb2 {[%emt 0:00:02]} 58. Ng3 {[%emt 0:00:37]} Nc4 {[%emt 0:00:23]} 59. g5 {[%emt 0:00:26]} Kd5 {[%emt 0:01:17]} 60. g6 {[%emt 0:00:46]} Nd6+ {[%emt 0:00:08]} 61. Kf6 {[%emt 0:00:39]} e4+ {[%emt 0:00:09]} 62. Ke7 {[%emt 0:00:23]} e3 {[%emt 0:00:18]} 63. Kf8 {[%emt 0:00:26]} Ne4 {[%emt 0:01:50]} 64. Ne2 {[%emt 0:00:48]} Ng5 {[%emt 0:00:22]} 65. Kg8 {[%emt 0:00:26]} Ke4 {[%emt 0:00:41]} 66. Ng1 {[%emt 0:00:36]} Kf4 {[%emt 0:00:19]} 67. Kf8 {[%emt 0:00:14]} Kg3 {[%emt 0:00:09]} 68. Ne2+ {[%emt 0:00:28]} Kf3 {[%emt 0:00:05]} 0-1

[Event "EYCC Open-U18 2019"]
[Site "Bratislava"]
[Date "2019.08.04"]
[Round "3.28"]
[White "Leisch, Lukas"]
[Black "Pobor, Danilo"]
[Result "1-0"]
[ECO "B89"]
[WhiteElo "2327"]
[BlackElo "1996"]
[Annotator "NA"]
[PlyCount "71"]
[EventDate "2019.08.02"]
[EventType "swiss"]
[EventCountry "SVK"]
[SourceTitle "playchess.com"]
[Source "ChessBase"]
[SourceQuality "1"]
[TimeControl "40/5400+30:1800+30"]

1. e4 {[%emt 0:00:00]} c5 {[%emt 0:00:00]} 2. Nf3 {[%emt 0:00:00]} Nc6 {[%emt 0:00:00]} 3. d4 {[%emt 0:00:00]} cxd4 {[%emt 0:00:00]} 4. Nxd4 {[%emt 0:00:00]} Nf6 {[%emt 0:00:36]} 5. Nc3 {[%emt 0:00:04]} d6 {[%emt 0:00:06]} 6. Bc4 {[%emt 0:00:30]} e6 {[%emt 0:00:21]} 7. Be3 {[%emt 0:00:22]} a6 {[%emt 0:01:02]} 8. Bb3 {[%emt 0:00:08]} Be7 {[%emt 0:03:41]} 9. O-O {[%emt 0:01:28]} O-O {[%emt 0:00:47]} 10. f4 {[%emt 0:00:24]} Na5 {[%emt 0:00:28]} 11. Qf3 {[%emt 0:01:47]} b5 {[%emt 0:06:28]} 12. e5 {[%emt 0:20:10]} Bb7 {[%emt 0:01:31]} 13. exf6 {[%emt 0:03:36]} Bxf3 {[%emt 0:00:18]} 14. fxe7 {[%emt 0:00:07]} Qxe7 {[%emt 0:00:30]} 15. Rxf3 {[%emt 0:00:34]} Nxb3 {[%emt 0:11:42]} 16. axb3 {[%emt 0:00:57]} b4 {[%emt 0:00:24]} 17. Ne4 {[%emt 0:02:20]} g6 {[%emt 0:05:58]} 18. Nc6 {[%emt 0:20:44]} Qb7 {[%emt 0:08:54]} 19. Nf6+ {[%emt 0:00:23]} Kg7 {[%emt 0:02:36]} 20. Na5 {[%emt 0:05:13]} Qc8 {[%emt 0:18:33]} 21. Bd4 {[%emt 0:05:02]} e5 {[%emt 0:05:21]} 22. fxe5 {[%emt 0:00:26]} dxe5 {[%emt 0:00:05]} 23. Be3 {[%emt 0:00:47]} Qxc2 {[%emt 0:01:40]} 24. Raf1 {[%emt 0:09:49]} Rfd8 {[%emt 0:08:09]} 25. R3f2 {[%emt 0:06:50]} Qc7 {[%emt 0:03:45]} 26. Nc4 {[%emt 0:00:27]} h5 {[%emt 0:00:53]} 27. Bb6 {[%emt 0:02:04]} Qe7 {[%emt 0:01:54]} 28. Re2 {[%emt 0:03:14]} Rdb8 {[%emt 0:07:25]} 29. Rxe5 {[%emt 0:02:17]} Qxe5 {[%emt 0:00:15]} 30. Nxe5 {[%emt 0:00:06]} Rxb6 {[%emt 0:00:02]} 31. Nfd7 {[%emt 0:00:37]} Rd6 {[%emt 0:00:48]} 32. Rxf7+ {[%emt 0:00:30]} Kh6 {[%emt 0:00:14]} 33. h4 {[%emt 0:01:58]} Rh8 {[%emt 0:04:05]} 34. Re7 {[%emt 0:02:54]} Rd1+ {[%emt 0:01:43]} 35. Kh2 {[%emt 0:00:08]} Ra8 {[%emt 0:00:37]} 36. Nf7+ {[%emt 0:01:02]} 1-0

[Event "EYCC Open-U18 2019"]
[Site "Bratislava"]
[Date "2019.08.04"]
[Round "3.29"]
[White "Iliaguev, Nisim"]
[Black "Anghelus, Alin-Gabriel"]
[Result "1/2-1/2"]
[ECO "A13"]
[WhiteElo "2357"]
[BlackElo "2107"]
[Annotator "NA"]
[PlyCount "52"]
[EventDate "2019.08.02"]
[EventType "swiss"]
[EventCountry "SVK"]
[SourceTitle "playchess.com"]
[Source "ChessBase"]
[SourceQuality "1"]
[TimeControl "40/5400+30:1800+30"]

1. c4 {[%emt 0:00:00]} e6 {[%emt 0:00:00]} 2. g3 {[%emt 0:00:00]} d5 {[%emt 0:00:26]} 3. Bg2 {[%emt 0:00:00]} dxc4 {[%emt 0:01:32]} 4. Nf3 {[%emt 0:00:04]} Nc6 {[%emt 0:01:12]} 5. Qa4 {[%emt 0:02:57]} Bd7 {[%emt 0:05:09]} 6. Qxc4 {[%emt 0:00:11]} Nf6 {[%emt 0:00:10]} 7. O-O {[%emt 0:00:20]} a6 {[%emt 0:01:16]} 8. d4 {[%emt 0:02:22]} Nb4 {[%emt 0:01:20]} 9. Nc3 {[%emt 0:03:57]} b5 {[%emt 0:02:20]} 10. Qb3 {[%emt 0:00:12]} c5 {[%emt 0:03:38]} 11. a3 {[%emt 0:12:33]} Nc6 {[%emt 0:03:25]} 12. dxc5 {[%emt 0:01:22]} Bxc5 {[%emt 0:00:27]} 13. Bg5 {[%emt 0:00:09]} Be7 {[%emt 0:03:00]} 14. Rad1 {[%emt 0:01:11]} O-O {[%emt 0:02:21]} 15. Rd3 {[%emt 0:17:35]} Qc7 {[%emt 0:02:02]} 16. Rc1 {[%emt 0:02:51]} Na5 {[%emt 0:09:01]} 17. Qd1 {[%emt 0:15:01]} Bc6 {[%emt 0:00:36]} 18. e4 {[%emt 0:07:22]} Nc4 {[%emt 0:01:46]} 19. Qe2 {[%emt 0:01:11]} h6 {[%emt 0:02:00]} 20. Bf4 {[%emt 0:04:55]} Qb7 {[%emt 0:04:35]} 21. Nd4 {[%emt 0:01:22]} e5 {[%emt 0:01:45]} 22. Nxc6 {[%emt 0:00:01]} Qxc6 {[%emt 0:00:10]} 23. Bd2 {[%emt 0:06:00]} Nxd2 {[%emt 0:05:25]} 24. Qxd2 {[%emt 0:00:59]} Rac8 {[%emt 0:01:19]} 25. Rd1 {[%emt 0:02:06]} Bc5 {[%emt 0:01:18]} 26. h3 {[%emt 0:09:03]} Bd4 {[%emt 0:02:20]} 1/2-1/2

[Event "EYCC Open-U18 2019"]
[Site "Bratislava"]
[Date "2019.08.04"]
[Round "3.30"]
[White "Galiana Fernandez, Adrian"]
[Black "Pektas, Yigit"]
[Result "1/2-1/2"]
[ECO "B18"]
[WhiteElo "2302"]
[BlackElo "2111"]
[Annotator "NA"]
[PlyCount "133"]
[EventDate "2019.08.02"]
[EventType "swiss"]
[EventCountry "SVK"]
[SourceTitle "playchess.com"]
[Source "ChessBase"]
[SourceQuality "1"]
[TimeControl "40/5400+30:1800+30"]

1. e4 {[%emt 0:00:00]} c6 {[%emt 0:00:00]} 2. d4 {[%emt 0:00:00]} d5 {[%emt 0:00:00]} 3. Nc3 {[%emt 0:00:00]} dxe4 {[%emt 0:00:00]} 4. Nxe4 {[%emt 0:00:00]} Bf5 {[%emt 0:00:00]} 5. Ng3 {[%emt 0:00:00]} Bg6 {[%emt 0:00:00]} 6. Nf3 {[%emt 0:00:16]} Nd7 {[%emt 0:00:28]} 7. Bd3 {[%emt 0:03:44]} e6 {[%emt 0:01:00]} 8. O-O {[%emt 0:00:09]} Ngf6 {[%emt 0:00:28]} 9. Re1 {[%emt 0:02:30]} Bd6 {[%emt 0:02:30]} 10. Bg5 {[%emt 0:00:42]} Qc7 {[%emt 0:04:38]} 11. c4 {[%emt 0:00:31]} O-O {[%emt 0:01:25]} 12. Rc1 {[%emt 0:05:07]} Bxd3 {[%emt 0:00:40]} 13. Qxd3 {[%emt 0:00:18]} h6 {[%emt 0:00:44]} 14. Bd2 {[%emt 0:03:29]} c5 {[%emt 0:05:30]} 15. d5 {[%emt 0:01:43]} exd5 {[%emt 0:00:23]} 16. cxd5 {[%emt 0:00:05]} Bxg3 {[%emt 0:04:52]} 17. hxg3 {[%emt 0:01:06]} Qd6 {[%emt 0:00:22]} 18. Red1 {[%emt 0:13:18]} Qxd5 {[%emt 0:05:32]} 19. Qxd5 {[%emt 0:00:08]} Nxd5 {[%emt 0:00:04]} 20. Bxh6 {[%emt 0:00:11]} N7f6 {[%emt 0:18:35]} 21. Bg5 {[%emt 0:00:13]} Rac8 {[%emt 0:03:24]} 22. Rd2 {[%emt 0:01:39]} b5 {[%emt 0:00:53]} 23. Rcd1 {[%emt 0:06:23]} Nb6 {[%emt 0:00:15]} 24. Bxf6 {[%emt 0:00:36]} gxf6 {[%emt 0:00:05]} 25. Rd6 {[%emt 0:00:14]} Nc4 {[%emt 0:03:31]} 26. Rxf6 {[%emt 0:01:00]} Nxb2 {[%emt 0:00:39]} 27. Rd5 {[%emt 0:00:08]} Rfd8 {[%emt 0:09:45]} 28. Rg5+ {[%emt 0:02:10]} Kf8 {[%emt 0:00:06]} 29. Ne5 {[%emt 0:22:55]} Rc7 {[%emt 0:00:49]} 30. Rgf5 {[%emt 0:00:27]} Rd1+ {[%emt 0:02:20]} 31. Kh2 {[%emt 0:01:01]} Rd5 {[%emt 0:04:00]} 32. f4 {[%emt 0:09:58]} c4 {[%emt 0:13:09]} 33. Rxf7+ {[%emt 0:00:08]} Rxf7 {[%emt 0:00:03]} 34. Rxf7+ {[%emt 0:00:18]} Ke8 {[%emt 0:00:03]} 35. Rc7 {[%emt 0:02:00]} Na4 {[%emt 0:00:26]} 36. g4 {[%emt 0:12:36]} c3 {[%emt 0:02:11]} 37. g5 {[%emt 0:01:32]} Rc5 {[%emt 0:03:51]} 38. Rxa7 {[%emt 0:00:57]} c2 {[%emt 0:01:44]} 39. Nd3 {[%emt 0:00:25]} c1=Q {[%emt 0:02:24]} 40. Nxc1 {[%emt 0:00:00]} Rxc1 {[%emt 0:00:00]} 41. f5 {[%emt 0:18:11]} Nc5 {[%emt 0:14:57]} 42. f6 {[%emt 0:02:03]} Nd7 {[%emt 0:03:01]} 43. f7+ {[%emt 0:00:48]} Kxf7 {[%emt 0:00:30]} 44. Rxd7+ {[%emt 0:00:07]} Kg6 {[%emt 0:00:02]} 45. Rd6+ {[%emt 0:00:14]} Kh5 {[%emt 0:01:30]} 46. Kg3 {[%emt 0:11:05]} Rc2 {[%emt 0:03:41]} 47. Ra6 {[%emt 0:01:23]} b4 {[%emt 0:06:06]} 48. g6 {[%emt 0:10:45]} Kh6 {[%emt 0:00:05]} 49. Kf3 {[%emt 0:01:12]} Rb2 {[%emt 0:00:06]} 50. g4 {[%emt 0:00:17]} b3 {[%emt 0:00:13]} 51. a4 {[%emt 0:00:54]} Ra2 {[%emt 0:00:22]} 52. g5+ {[%emt 0:00:22]} Kg7 {[%emt 0:00:08]} 53. Kg4 {[%emt 0:00:28]} b2 {[%emt 0:01:10]} 54. Rb6 {[%emt 0:00:12]} Rxa4+ {[%emt 0:00:06]} 55. Kh5 {[%emt 0:00:07]} Ra1 {[%emt 0:00:11]} 56. Rb7+ {[%emt 0:00:29]} Kg8 {[%emt 0:00:06]} 57. Rb8+ {[%emt 0:00:15]} Kg7 {[%emt 0:00:06]} 58. Rb7+ {[%emt 0:00:15]} Kg8 {[%emt 0:00:01]} 59. Rxb2 {[%emt 0:00:06]} Rh1+ {[%emt 0:00:10]} 60. Kg4 {[%emt 0:00:11]} Kg7 {[%emt 0:00:23]} 61. Rb6 {[%emt 0:01:14]} Rg1+ {[%emt 0:00:07]} 62. Kf5 {[%emt 0:01:04]} Rf1+ 63. Ke5 {[%emt 0:00:04]} Re1+ {[%emt 0:00:08]} 64. Kf4 {[%emt 0:00:49]} Rf1+ {[%emt 0:00:06]} 65. Ke3 {[%emt 0:00:05]} Re1+ {[%emt 0:00:06]} 66. Kf3 {[%emt 0:00:08]} Rf1+ {[%emt 0:00:04]} 67. Ke4 1/2-1/2

[Event "EYCC Open-U18 2019"]
[Site "Bratislava"]
[Date "2019.08.04"]
[Round "3.31"]
[White "Mladek, Richard"]
[Black "Cordeiro, Joao Carlos Santos F"]
[Result "1-0"]
[ECO "C95"]
[WhiteElo "2253"]
[BlackElo "1924"]
[Annotator "NA"]
[PlyCount "101"]
[EventDate "2019.08.02"]
[EventType "swiss"]
[EventCountry "SVK"]
[SourceTitle "playchess.com"]
[Source "ChessBase"]
[SourceQuality "1"]
[TimeControl "40/5400+30:1800+30"]

1. e4 {[%emt 0:00:00]} e5 {[%emt 0:00:00]} 2. Nf3 {[%emt 0:00:00]} Nc6 {[%emt 0:00:00]} 3. Bb5 {[%emt 0:00:00]} a6 {[%emt 0:00:07]} 4. Ba4 {[%emt 0:00:00]} Nf6 {[%emt 0:00:28]} 5. O-O {[%emt 0:00:00]} b5 {[%emt 0:01:05]} 6. Bb3 {[%emt 0:00:06]} Be7 {[%emt 0:00:12]} 7. Re1 {[%emt 0:00:18]} d6 {[%emt 0:01:02]} 8. c3 {[%emt 0:00:29]} Nb8 {[%emt 0:07:59]} 9. h3 {[%emt 0:01:48]} O-O {[%emt 0:01:11]} 10. d4 {[%emt 0:00:12]} Nbd7 {[%emt 0:00:17]} 11. Nbd2 {[%emt 0:00:15]} Bb7 {[%emt 0:02:16]} 12. Bc2 {[%emt 0:00:18]} Re8 {[%emt 0:01:14]} 13. Nf1 {[%emt 0:00:52]} Bf8 {[%emt 0:00:17]} 14. Ng3 {[%emt 0:00:50]} g6 {[%emt 0:04:04]} 15. a4 {[%emt 0:01:37]} c5 {[%emt 0:09:21]} 16. d5 {[%emt 0:04:09]} Qc7 {[%emt 0:04:53]} 17. Nh2 {[%emt 0:13:21]} Bg7 {[%emt 0:04:11]} 18. Be3 {[%emt 0:04:46]} c4 {[%emt 0:07:45]} 19. Qd2 {[%emt 0:03:21]} Nc5 {[%emt 0:05:44]} 20. Bh6 {[%emt 0:00:42]} Bxh6 {[%emt 0:16:20]} 21. Qxh6 {[%emt 0:00:10]} Qe7 {[%emt 0:00:31]} 22. f4 {[%emt 0:19:52]} Qf8 {[%emt 0:08:21]} 23. Qg5 {[%emt 0:11:10]} Qg7 {[%emt 0:00:36]} 24. f5 {[%emt 0:00:49]} h6 {[%emt 0:02:04]} 25. Qe3 {[%emt 0:01:49]} g5 {[%emt 0:02:58]} 26. Ng4 {[%emt 0:00:38]} Nxg4 {[%emt 0:02:31]} 27. hxg4 {[%emt 0:00:01]} f6 {[%emt 0:00:43]} 28. Kf2 {[%emt 0:02:41]} Kf8 {[%emt 0:00:27]} 29. Rh1 {[%emt 0:01:02]} Ke7 {[%emt 0:00:58]} 30. Nf1 {[%emt 0:02:13]} Rh8 {[%emt 0:02:11]} 31. Nd2 {[%emt 0:00:06]} Qf8 {[%emt 0:01:50]} 32. b4 {[%emt 0:04:35]} Nd7 {[%emt 0:04:19]} 33. Rh5 {[%emt 0:03:45]} Qg7 {[%emt 0:03:41]} 34. Nb1 {[%emt 0:00:46]} Qf8 {[%emt 0:03:18]} 35. Na3 {[%emt 0:03:18]} Qd8 {[%emt 0:01:47]} 36. Rah1 {[%emt 0:00:18]} Qf8 {[%emt 0:02:11]} 37. Ke2 {[%emt 0:03:09]} a5 {[%emt 0:00:43]} 38. Nxb5 {[%emt 0:00:52]} axb4 {[%emt 0:00:15]} 39. cxb4 {[%emt 0:00:13]} Rc8 {[%emt 0:01:05]} 40. Qh3 {[%emt 0:00:00]} Ba6 {[%emt 0:00:00]} 41. Nc3 {[%emt 0:09:05]} Rb8 {[%emt 0:01:53]} 42. b5 {[%emt 0:03:34]} Bc8 {[%emt 0:03:44]} 43. Rxh6 {[%emt 0:00:14]} Rxh6 {[%emt 0:01:27]} 44. Qxh6 {[%emt 0:00:07]} Qxh6 {[%emt 0:00:18]} 45. Rxh6 {[%emt 0:00:03]} Kd8 {[%emt 0:00:05]} 46. Nd1 {[%emt 0:05:43]} Kc7 {[%emt 0:00:36]} 47. Ne3 {[%emt 0:00:33]} Kb6 {[%emt 0:01:23]} 48. Nxc4+ {[%emt 0:00:54]} Kc5 {[%emt 0:00:02]} 49. Kd3 {[%emt 0:00:54]} Kb4 {[%emt 0:00:25]} 50. Nxd6 {[%emt 0:00:28]} Nc5+ {[%emt 0:00:08]} 51. Kd2 {[%emt 0:00:44]} 1-0